fUSD/lending_fUSD_20250623
["ID","MTS","AMOUNT","RATE_DAILY","PERIOD"]
[367238522,1750710667705,-490.0,0.00022796,2]
[367238523,1750710667715,-490.0,0.00022796,2]
[367238524,1750710667724,-490.0,0.00022796,2]
[367238525,1750710667734,-490.0,0.00022796,2]
[367238526,1750710667744,-490.0,0.00022796,2]
[367238527,1750710667753,-490.0,0.00022797,2]
[367238528,1750710667763,-253.166524,0.00022797,7]
[367238529,1750710667773,-253.166524,0.00022797,7]
[367238530,1750710667783,-253.166524,0.00022797,7]
[367238531,1750710667793,-253.166524,0.00022797,7]
[367238532,1750710667806,-253.166524,0.00022797,7]
[367238533,1750710667817,-253.166524,0.00022797,7]
[367238534,1750710667826,-490.0,0.00022797,2]
[367238535,1750710667835,-490.0,0.00022797,2]
[367238536,1750710667847,-490.0,0.00022797,2]
[367238537,1750710667856,-490.0,0.00022797,2]
[367238538,1750710667865,-524.0,0.00022797,2]
[367238539,1750710667876,-735.39,0.00022797,2]
[367238540,1750710667887,-490.0,0.00022797,2]
[367238541,1750710667896,-490.0,0.00022797,2]
[367238542,1750710667907,-490.0,0.00022797,2]
[367238543,1750710667916,-490.0,0.00022797,2]
[367238544,1750710667925,-500.0,0.00022797,2]
[367238545,1750710667936,-490.0,0.00022797,2]
[367238546,1750710667945,-490.0,0.00022797,2]
[367238547,1750710667955,-990.71,0.00022797,2]
[367238548,1750710667964,-490.0,0.00022797,2]
[367238549,1750710667974,-575.57,0.00022797,2]
[367238550,1750710667983,-772.61,0.00022797,2]
[367238551,1750710667992,-491.06,0.00022797,2]
[367238552,1750710668002,-490.09,0.00022797,2]
[367238553,1750710668011,-490.0,0.00022797,2]
[367238554,1750710668021,-915.69,0.00022797,2]
[367238555,1750710668031,-490.0,0.00022797,2]
[367238556,1750710668040,-500.0,0.00022797,2]
[367238557,1750710668050,-490.0,0.00022797,2]
[367238558,1750710668059,-490.0,0.00022797,2]
[367238559,1750710668069,-628.66,0.00022797,2]
[367238560,1750710668078,-506.59,0.00022797,2]
[367238561,1750710668088,-490.0,0.00022797,2]
[367238562,1750710668097,-151.0,0.00022797,7]
[367238563,1750710668107,-151.0,0.00022797,7]
[367238564,1750710668116,-490.0,0.00022797,2]
[367238565,1750710668125,-490.0,0.00022797,2]
[367238566,1750710668134,-582.75,0.00022797,2]
[367238567,1750710668144,-519.04,0.00022797,2]
[367238568,1750710668154,-490.0,0.00022797,2]
[367238569,1750710668165,-151.0,0.00022797,7]
[367238570,1750710668175,-151.0,0.00022797,7]
[367238571,1750710668184,-490.0,0.00022797,2]
[367238572,1750710668193,-490.0,0.00022797,2]
[367238573,1750710668203,-490.0,0.00022797,2]
[367238574,1750710668212,-490.0,0.00022797,2]
[367238575,1750710668221,-967.15,0.00022797,2]
[367238576,1750710668231,-490.0,0.00022797,2]
[367238577,1750710668240,-875.78,0.00022797,2]
[367238578,1750710668249,-490.0,0.00022797,2]
[367238579,1750710668259,-490.0,0.00022797,2]
[367238580,1750710668271,-151.0,0.00022797,7]
[367238581,1750710668281,-151.0,0.00022797,7]
[367238582,1750710668290,-151.0,0.00022797,7]
[367238583,1750710668300,-490.0,0.00022797,2]
[367238584,1750710668309,-660.28,0.00022797,2]
[367238585,1750710668319,-490.0,0.00022797,2]
[367238586,1750710668329,-490.0,0.00022797,2]
[367238587,1750710668339,-559.12,0.00022797,2]
[367238588,1750710668348,-490.0,0.00022797,2]
[367238589,1750710668358,-651.17,0.00022797,2]
[367238590,1750710668367,-490.0,0.00022797,2]
[367238591,1750710668376,-1191.4,0.00022797,2]
[367238592,1750710668386,-490.0,0.00022797,2]
[367238593,1750710668395,-490.0,0.00022797,2]
[367238594,1750710668405,-490.0,0.00022797,2]
[367238595,1750710668414,-1026.87,0.00022797,2]
[367238596,1750710668424,-1291.46,0.00022797,2]
[367238597,1750710668433,-981.07,0.00022797,2]
[367238598,1750710668443,-577.24,0.00022797,2]
[367238599,1750710668452,-490.0,0.00022797,2]
[367238600,1750710668462,-595.99,0.00022797,2]
[367238601,1750710668471,-710.64,0.00022797,2]
[367238602,1750710668481,-1205.14,0.00022797,2]
[367238603,1750710668491,-1342.57,0.00022797,2]
[367238604,1750710668500,-533.71,0.00022797,2]
[367238605,1750710668510,-679.31,0.00022797,2]
[367238606,1750710668519,-530.58,0.00022797,2]
[367238607,1750710668530,-490.0,0.00022797,2]
[367238608,1750710668540,-837.78,0.00022797,2]
[367238609,1750710668550,-500.0,0.00022797,2]
[367238610,1750710668559,-1179.84,0.00022797,2]
[367238611,1750710668569,-961.11,0.00022797,2]
[367238612,1750710668579,-1136.53,0.00022797,2]
[367238613,1750710668588,-1068.72,0.00022797,2]
[367238614,1750710668598,-1354.21,0.00022797,2]
[367238615,1750710668608,-170.309933,0.00022797,7]
[367238616,1750710668617,-170.309931,0.00022797,7]
[367238617,1750710668627,-754.22,0.00022797,2]
[367238618,1750710668637,-986.32,0.00022797,2]
[367238619,1750710668647,-1008.06,0.00022797,2]
[367238620,1750710668658,-490.0,0.00022797,2]
[367238621,1750710668667,-751.37,0.00022797,2]
[367238622,1750710668676,-2029.07,0.00022797,2]
[367238623,1750710668686,-1038.6,0.00022797,2]
[367238624,1750710668695,-1214.25,0.00022797,2]
[367238625,1750710668705,-490.0,0.00022797,2]
[367238626,1750710668715,-548.28,0.00022797,2]
[367238627,1750710668725,-1332.77,0.00022797,2]
[367238628,1750710668735,-1759.61,0.00022797,2]
[367238629,1750710668745,-506.1,0.00022797,2]
[367238630,1750710668754,-819.81,0.00022797,2]
[367238631,1750710668764,-650.5,0.00022797,2]
[367238632,1750710668778,-490.0,0.00022797,2]
[367238633,1750710668787,-1002.2,0.00022797,2]
[367238634,1750710668798,-931.92,0.00022797,2]
[367238635,1750710668809,-1531.41,0.00022797,2]
[367238636,1750710668819,-1052.06,0.00022797,2]
[367238637,1750710668829,-652.81,0.00022797,2]
[367238638,1750710668839,-490.0,0.00022797,2]
[367238639,1750710668848,-300.0,0.00022797,2]
[367238640,1750710668857,-253.166524,0.00022798,7]
[367238641,1750710668867,-253.166524,0.00022798,7]
[367238642,1750710668880,-151.0,0.00022798,7]
[367238643,1750710668891,-193.035016,0.00022798,7]
[367238644,1750710668900,-151.0,0.00022798,7]
[367238645,1750710668910,-4348.567,0.00022798,2]
[367238646,1750710668920,-159.552,0.00022798,2]
[367238647,1750710668929,-500.0,0.000228,2]
[367238648,1750710668939,-2603.63,0.000228,2]
[367238649,1750710668949,-937.87660311,0.00022815,2]
[367238650,1750710668961,-150.0,0.00022817,2]
[367238651,1750710668971,-490.0,0.00022825,2]
[367238652,1750710668980,-490.0,0.00022825,2]
[367238653,1750710668989,-490.0,0.00022825,2]
[367238654,1750710668999,-490.0,0.00022825,2]
[367238655,1750710669008,-490.0,0.00022825,2]
[367238656,1750710669018,-490.0,0.00022825,2]
[367238657,1750710669033,-617.01,0.00022825,2]
[367238658,1750710669042,-539.88,0.00022825,2]
[367238659,1750710669052,-498.74,0.00022825,2]
[367238660,1750710669061,-490.0,0.00022825,2]
[367238661,1750710669070,-490.0,0.00022825,2]
[367238662,1750710669079,-490.0,0.00022825,2]
[367238663,1750710669089,-536.66693313,0.00022825,2]
[367238664,1750710669098,-490.0,0.00022825,2]
[367238665,1750710669107,-490.0,0.00022825,2]
[367238666,1750710669117,-490.0,0.00022825,2]
[367238667,1750710669126,-490.0,0.00022825,2]
[367238668,1750710669136,-490.0,0.00022825,2]
[367238669,1750710669145,-490.0,0.00022825,2]
[367238670,1750710669154,-490.0,0.00022825,2]
[367238671,1750710669164,-369.35932319,0.00022825,2]
[367238672,1750710669174,-490.0,0.00022825,2]
[367238673,1750710669183,-490.0,0.00022825,2]
[367238674,1750710669193,-490.0,0.00022825,2]
[367238675,1750710669202,-490.0,0.00022825,2]
[367238676,1750710669211,-490.0,0.00022825,2]
[367238677,1750710669220,-681.88,0.00022825,2]
[367238678,1750710669230,-490.0,0.00022825,2]
[367238679,1750710669323,-490.0,0.00022825,2]
[367238680,1750710669333,-490.0,0.00022825,2]
[367238681,1750710669343,-490.0,0.00022825,2]
[367238682,1750710669352,-490.0,0.00022825,2]
[367238683,1750710669362,-490.0,0.00022825,2]
[367238684,1750710669377,-490.0,0.00022825,2]
[367238685,1750710669387,-490.0,0.00022825,2]
[367238686,1750710669396,-490.0,0.00022825,2]
[367238687,1750710669406,-717.87,0.00022825,2]
[367238688,1750710669415,-443.67731638,0.00022825,2]
[367238689,1750710669424,-490.0,0.00022825,2]
[367238690,1750710669433,-490.0,0.00022825,2]
[367238691,1750710669442,-490.0,0.00022825,2]
[367238692,1750710669451,-490.0,0.00022825,2]
[367238693,1750710669461,-490.0,0.00022825,2]
[367238694,1750710669470,-490.0,0.00022825,2]
[367238695,1750710669479,-652.42,0.00022825,2]
[367238696,1750710669489,-511.22,0.00022825,2]
[367238697,1750710669498,-490.0,0.00022825,2]
[367238698,1750710669507,-490.0,0.00022825,2]
[367238699,1750710669517,-574.68,0.00022825,2]
[367238700,1750710669530,-544.43,0.00022825,2]
[367238701,1750710669539,-490.0,0.00022825,2]
[367238702,1750710669548,-490.0,0.00022825,2]
[367238703,1750710669557,-490.0,0.00022825,2]
[367238704,1750710669567,-523.25,0.00022825,2]
[367238705,1750710669576,-273.5430083,0.00022825,2]
[367238706,1750710669586,-1496.89,0.00022825,2]
[367238707,1750710669596,-613.77,0.00022825,2]
[367238708,1750710669605,-554.75,0.00022825,2]
[367238709,1750710669618,-643.23,0.00022825,2]
[367238710,1750710669627,-631.16,0.00022825,2]
[367238711,1750710669637,-509.46,0.00022825,2]
[367238712,1750710669646,-490.0,0.00022825,2]
[367238713,1750710669655,-490.0,0.00022825,2]
[367238714,1750710669665,-490.0,0.00022825,2]
[367238715,1750710669674,-697.47,0.00022825,2]
[367238716,1750710669684,-490.0,0.00022825,2]
[367238717,1750710669693,-490.0,0.00022825,2]
[367238718,1750710669702,-490.0,0.00022825,2]
[367238719,1750710669712,-490.0,0.00022825,2]
[367238720,1750710669722,-419.27326861,0.00022825,2]
[367238721,1750710669731,-490.0,0.00022825,2]
[367238722,1750710669741,-490.0,0.00022825,2]
[367238723,1750710669754,-490.0,0.00022825,2]
[367238724,1750710669763,-490.0,0.00022825,2]
[367238725,1750710669773,-490.0,0.00022825,2]
[367238726,1750710669783,-1014.68,0.00022825,2]
[367238727,1750710669794,-843.4,0.00022825,2]
[367238728,1750710669804,-490.0,0.00022825,2]
[367238729,1750710669813,-490.0,0.00022825,2]
[367238730,1750710669823,-490.0,0.00022825,2]
[367238731,1750710669832,-330.11962573,0.00022825,2]
[367238732,1750710669842,-322.90091852,0.00022825,2]
[367238733,1750710669852,-1658.74,0.00022825,2]
[367238734,1750710669861,-724.32,0.00022825,2]
[367238735,1750710669872,-490.0,0.00022825,2]
[367238736,1750710669883,-568.4,0.00022825,2]
[367238737,1750710669899,-690.87,0.00022825,2]
[367238738,1750710669907,-490.0,0.00022825,2]
[367238739,1750710669917,-893.64,0.00022825,2]
[367238740,1750710669927,-490.0,0.00022825,2]
[367238741,1750710669936,-507.95,0.00022825,2]
[367238742,1750710669946,-832.18,0.00022825,2]
[367238743,1750710669955,-490.0,0.00022825,2]
[367238744,1750710669964,-702.71,0.00022825,2]
[367238745,1750710669974,-187.26068838,0.00022825,2]
[367238746,1750710669982,-890.74,0.00022825,2]
[367238747,1750710669993,-772.84,0.00022825,2]
[367238748,1750710670003,-490.0,0.00022825,2]
[367238749,1750710670012,-490.0,0.00022825,2]
[367238750,1750710670025,-1094.4,0.00022825,2]
[367238751,1750710670034,-2061.61,0.00022825,2]
[367238752,1750710670044,-636.31,0.00022825,2]
[367238753,1750710670053,-20274.24,0.00022825,2]
[367238754,1750710670063,-654.37,0.00022825,2]
[367238755,1750710670073,-1199.61,0.00022825,2]
[367238756,1750710670083,-3329.3,0.00022825,2]
[367238757,1750710670093,-2581.27,0.00022825,2]
[367238758,1750710670102,-977.77,0.00022825,2]
[367238759,1750710670112,-490.0,0.00022825,2]
[367238760,1750710670122,-1888.74,0.00022825,2]
[367238761,1750710670131,-538.49,0.00022825,2]
[367238762,1750710670140,-490.0,0.00022825,2]
[367238763,1750710670149,-2037.25,0.00022825,2]
[367238764,1750710670159,-1200.34,0.00022825,2]
[367238765,1750710670168,-569.81,0.00022825,2]
[367238766,1750710670177,-935.97,0.00022825,2]
[367238767,1750710670187,-561.15,0.00022825,2]
[367238768,1750710670197,-490.0,0.00022825,2]
[367238769,1750710670206,-1087.67,0.00022825,2]
[367238770,1750710670215,-650.26,0.00022825,2]
[367238771,1750710670224,-4332.58,0.00022825,2]
[367238772,1750710670234,-653.45,0.00022825,2]
[367238773,1750710670243,-909.2,0.00022825,2]
[367238774,1750710670253,-490.0,0.00022825,2]
[367238775,1750710670262,-1695.31,0.00022825,2]
[367238776,1750710670272,-635.59,0.00022825,2]
[367238777,1750710670281,-490.0,0.00022825,2]
[367238778,1750710670291,-554.61,0.00022825,2]
[367238779,1750710670300,-490.0,0.00022825,2]
[367238780,1750710670309,-490.0,0.00022825,2]
[367238781,1750710670318,-641.74,0.00022825,2]
[367238782,1750710670328,-737.92,0.00022825,2]
[367238783,1750710670337,-5079.5,0.00022825,2]
[367238784,1750710670346,-490.0,0.00022825,2]
[367238785,1750710670355,-7897.14,0.00022825,2]
[367238786,1750710670365,-490.0,0.00022825,2]
[367238787,1750710670374,-490.0,0.00022825,2]
[367238788,1750710670383,-1651.51,0.00022825,2]
[367238789,1750710670392,-6489.39,0.00022825,2]
[367238790,1750710670402,-490.0,0.00022825,2]
[367238791,1750710670411,-490.0,0.00022825,2]
[367238792,1750710670420,-511.96,0.00022825,2]
[367238793,1750710670429,-300.0,0.00022825,2]
[367238794,1750710670438,-2158.68,0.00022825,2]
[367238795,1750710670447,-1190.63,0.00022825,2]
[367238796,1750710670457,-917.92,0.00022825,2]
[367238797,1750710670466,-940.86,0.00022825,2]
[367238798,1750710670475,-3167.61,0.00022825,2]
[367238799,1750710670484,-1445.98,0.00022825,2]
[367238800,1750710670496,-808.84,0.00022825,2]
[367238801,1750710670506,-730.0,0.00022825,2]
[367238802,1750710670516,-159.54956292,0.00022825,2]
[367238803,1750710670527,-603.51,0.00022825,2]
[367238804,1750710670536,-490.0,0.00022825,2]
[367238805,1750710670545,-490.0,0.00022825,2]
[367238806,1750710670555,-490.0,0.00022825,2]
[367238807,1750710670566,-490.0,0.00022825,2]
[367238808,1750710670575,-11169.83,0.00022825,2]
[367238809,1750710670586,-490.0,0.00022825,2]
[367238810,1750710670596,-490.0,0.00022825,2]
[367238811,1750710670605,-150.0,0.00022836,2]
[367238812,1750710670615,-262.01765265,0.00022836,2]
[367238813,1750710670625,-791.24262585,0.00022839,2]
[367238814,1750710670635,-791.24262585,0.00022842,2]
[367238815,1750710670645,-791.24262585,0.00022848,2]
[367238816,1750710670654,-150.0,0.0002285,2]
[367238817,1750710670664,-150.0,0.00022852,2]
[367238818,1750710670673,-731.45936786,0.00022853,2]
[367238819,1750710670683,-214.72120856,0.00022853,2]
[367238820,1750710670692,-150.0,0.00022859,2]
[367238821,1750710670702,-49906.4136261,0.0002286,2]
[367238822,1750710670711,-731.45936786,0.00022864,2]
[367238823,1750710670722,-262.01765265,0.00022866,2]
[367238824,1750710670731,-300.0,0.00022866,2]
[367238825,1750710670741,-253.166524,0.00022867,7]
[367238826,1750710670751,-253.166532,0.00022867,7]
[367238827,1750710670760,-151.0,0.00022867,7]
[367238828,1750710670769,-151.0,0.00022867,7]
[367238829,1750710670782,-4985.7423874,0.00022867,2]
[367238830,1750710670792,-14544.184173,0.00022867,2]
[367238831,1750710670804,-1000.0,0.0002287,2]
[367238832,1750710670813,-500.0,0.00022874,2]
[367238833,1750710670822,-1324.783508,0.00022874,14]
[367238834,1750710670831,-500.0,0.00022875,2]
[367238835,1750710670841,-208.0,0.00022875,2]
[367238836,1750710670851,-311.78054774,0.00022876,2]
[367238837,1750710670860,-241.3,0.00022877,2]
[367238838,1750710670871,-150.0,0.00022878,2]
[367238839,1750710670881,-500.0,0.00022878,2]
[367238840,1750710670891,-500.0,0.00022878,2]
[367238841,1750710670901,-150.49237548,0.00022878,2]
[367238842,1750710670911,-150.0,0.00022878,2]
[367238843,1750710670922,-500.0,0.00022878,2]
[367238844,1750710670932,-500.0,0.00022878,2]
[367238845,1750710670943,-500.0,0.00022878,2]
[367238846,1750710670953,-150.0,0.00022878,2]
[367238847,1750710670962,-500.0,0.00022878,2]
[367238848,1750710670973,-150.0,0.00022878,2]
[367238849,1750710670982,-500.0,0.00022878,2]
[367238850,1750710670992,-500.0,0.00022878,2]
[367238851,1750710671002,-500.0,0.00022878,2]
[367238852,1750710671011,-500.0,0.00022878,2]
[367238853,1750710671021,-150.0,0.00022878,2]
[367238854,1750710671031,-500.0,0.00022878,2]
[367238855,1750710671041,-150.0,0.00022878,2]
[367238856,1750710671050,-500.0,0.00022878,2]
[367238857,1750710671060,-500.0,0.00022878,2]
[367238858,1750710671069,-500.0,0.00022878,2]
[367238859,1750710671079,-500.0,0.00022878,2]
[367238860,1750710671088,-150.44106238,0.00022878,2]
[367238861,1750710671098,-150.0,0.00022878,2]
[367238862,1750710671107,-500.0,0.00022878,2]
[367238863,1750710671117,-500.0,0.00022878,2]
[367238864,1750710671127,-500.0,0.00022878,2]
[367238865,1750710671137,-500.0,0.00022878,2]
[367238866,1750710671147,-150.0,0.00022878,2]
[367238867,1750710671156,-500.0,0.00022878,2]
[367238868,1750710671166,-486.0,0.00022878,2]
[367238869,1750710671175,-500.0,0.00022878,2]
[367238870,1750710671185,-660.0,0.00022878,2]
[367238871,1750710671195,-660.0,0.00022878,2]
[367238872,1750710671205,-150.0,0.00022878,2]
[367238873,1750710671214,-500.0,0.00022878,2]
[367238874,1750710671224,-158.21118038,0.00022878,2]
[367238875,1750710671234,-150.0,0.00022878,2]
[367238876,1750710671244,-150.0,0.00022878,2]
[367238877,1750710671253,-150.0,0.00022878,2]
[367238878,1750710671263,-150.0,0.00022878,2]
[367238879,1750710671274,-500.0,0.00022878,2]
[367238880,1750710671284,-150.0,0.00022878,2]
[367238881,1750710671293,-154.94191847,0.00022878,2]
[367238882,1750710671303,-463.07190384,0.00022879,2]
[367238883,1750710671312,-498.0,0.0002288,2]
[367238884,1750710671322,-500.0,0.00022883,2]
[367238885,1750710671332,-140900.8710473,0.0002289,2]
[367238886,1750710671341,-2664.1371526,0.0002289,2]
[367238887,1750710671351,-207.0,0.000229,2]
[367238888,1750710671360,-151.0,0.000229,7]
[367238889,1750710671370,-151.0,0.000229,7]
[367238890,1750710671379,-376.0,0.000229,2]
[367238891,1750710671390,-769.0,0.000229,2]
[367238892,1750710671399,-238.0,0.000229,2]
[367238893,1750710671409,-500.0,0.00022905,2]
[367238894,1750710671418,-500.0,0.00022905,2]
[367238895,1750710671427,-150.0,0.00022905,2]
[367238896,1750710671437,-500.0,0.00022905,2]
[367238897,1750710671447,-500.0,0.00022905,2]
[367238898,1750710671456,-500.0,0.00022905,2]
[367238899,1750710671466,-150.0,0.00022905,2]
[367238900,1750710671476,-500.0,0.00022905,2]
[367238901,1750710671486,-150.0,0.00022905,2]
[367238902,1750710671497,-500.0,0.00022905,2]
[367238903,1750710671507,-500.0,0.00022905,2]
[367238904,1750710671516,-500.0,0.00022905,2]
[367238905,1750710671528,-500.0,0.00022905,2]
[367238906,1750710671537,-150.0,0.00022905,2]
[367238907,1750710671547,-500.0,0.00022905,2]
[367238908,1750710671556,-500.0,0.00022905,2]
[367238909,1750710671566,-500.0,0.00022905,2]
[367238910,1750710671576,-500.0,0.00022905,2]
[367238911,1750710671586,-500.0,0.00022905,2]
[367238912,1750710671596,-500.0,0.00022905,2]
[367238913,1750710671605,-500.0,0.00022905,2]
[367238914,1750710671615,-500.0,0.00022905,2]
[367238915,1750710671625,-500.0,0.00022905,2]
[367238916,1750710671634,-150.0,0.00022905,2]
[367238917,1750710671644,-500.0,0.00022905,2]
[367238918,1750710671653,-486.0,0.00022905,2]
[367238919,1750710671663,-500.0,0.00022905,2]
[367238920,1750710671672,-660.0,0.00022905,2]
[367238921,1750710671682,-660.0,0.00022905,2]
[367238922,1750710671691,-150.0,0.00022905,2]
[367238923,1750710671702,-500.0,0.00022905,2]
[367238924,1750710671712,-236.97411969,0.00022905,2]
[367238925,1750710671721,-150.0,0.00022905,2]
[367238926,1750710671730,-150.0,0.00022905,2]
[367238927,1750710671740,-150.0,0.00022905,2]
[367238928,1750710671750,-500.0,0.00022905,2]
[367238929,1750710671760,-2085.37905405,0.00022915,2]
[367238930,1750710671769,-1565.01982,0.0002292,2]
[367238931,1750710671780,-200.0,0.00022923,2]
[367238932,1750710671790,-200.0,0.00022923,2]
[367238933,1750710671802,-500.0,0.00022933,2]
[367238934,1750710671812,-582.64866435,0.00022933,2]
[367238935,1750710671821,-150.0,0.00022933,2]
[367238936,1750710671830,-500.0,0.00022933,2]
[367238937,1750710671841,-419.04475821,0.00022933,2]
[367238938,1750710671852,-649.18749161,0.00022933,2]
[367238939,1750710671861,-152.30574078,0.00022933,2]
[367238940,1750710671870,-500.0,0.00022933,2]
[367238941,1750710671880,-202.50527384,0.00022933,2]
[367238942,1750710671893,-500.0,0.00022933,2]
[367238943,1750710671903,-500.0,0.00022933,2]
[367238944,1750710671912,-500.0,0.00022933,2]
[367238945,1750710671922,-500.0,0.00022933,2]
[367238946,1750710671931,-150.0,0.00022933,2]
[367238947,1750710671940,-500.0,0.00022933,2]
[367238948,1750710671951,-500.0,0.00022933,2]
[367238949,1750710671961,-500.0,0.00022933,2]
[367238950,1750710671973,-500.0,0.00022933,2]
[367238951,1750710671984,-500.0,0.00022933,2]
[367238952,1750710671994,-500.0,0.00022933,2]
[367238953,1750710672004,-500.0,0.00022933,2]
[367238954,1750710672014,-500.0,0.00022933,2]
[367238955,1750710672023,-500.0,0.00022933,2]
[367238956,1750710672033,-224.76254496,0.00022933,2]
[367238957,1750710672042,-500.0,0.00022933,2]
[367238958,1750710672051,-486.0,0.00022933,2]
[367238959,1750710672062,-500.0,0.00022933,2]
[367238960,1750710672072,-660.0,0.00022933,2]
[367238961,1750710672081,-660.0,0.00022933,2]
[367238962,1750710672090,-208.05917183,0.00022933,2]
[367238963,1750710672099,-500.0,0.00022933,2]
[367238964,1750710672109,-291.52395666,0.00022933,2]
[367238965,1750710672119,-160.99869309,0.00022933,2]
[367238966,1750710672129,-253.28165186,0.00022933,2]
[367238967,1750710672140,-500.0,0.00022933,2]
[367238968,1750710672150,-9276.01056342,0.0002294,2]
[367238969,1750710672160,-14999.3633332,0.0002294,2]
[367238970,1750710672169,-150.0,0.00022941,2]
[367238971,1750710672179,-1200.0,0.00022947,2]
[367238972,1750710672189,-209.29907483,0.00022947,2]
[367238973,1750710672199,-151.0,0.00022947,2]
[367238974,1750710672209,-151.0,0.00022947,2]
[367238975,1750710672218,-151.0,0.00022947,2]
[367238976,1750710672228,-151.0,0.00022947,2]
[367238977,1750710672238,-151.0,0.00022947,2]
[367238978,1750710672247,-151.0,0.00022947,2]
[367238979,1750710672256,-151.0,0.00022947,2]
[367238980,1750710672265,-151.0,0.00022947,2]
[367238981,1750710672275,-500.0,0.0002296,2]
[367238982,1750710672285,-150.0,0.0002296,2]
[367238983,1750710672294,-500.0,0.0002296,2]
[367238984,1750710672304,-500.0,0.0002296,2]
[367238985,1750710672313,-500.0,0.0002296,2]
[367238986,1750710672323,-500.0,0.0002296,2]
[367238987,1750710672332,-500.0,0.0002296,2]
[367238988,1750710672342,-500.0,0.0002296,2]
[367238989,1750710672351,-150.0,0.0002296,2]
[367238990,1750710672361,-500.0,0.0002296,2]
[367238991,1750710672370,-500.0,0.0002296,2]
[367238992,1750710672379,-500.0,0.0002296,2]
[367238993,1750710672389,-500.0,0.0002296,2]
[367238994,1750710672398,-500.0,0.0002296,2]
[367238995,1750710672408,-500.0,0.0002296,2]
[367238996,1750710672417,-628.6384077,0.0002296,2]
[367238997,1750710672426,-500.0,0.0002296,2]
[367238998,1750710672435,-500.0,0.0002296,2]
[367238999,1750710672444,-500.0,0.0002296,2]
[367239000,1750710672454,-486.0,0.0002296,2]
[367239001,1750710672463,-500.0,0.0002296,2]
[367239002,1750710672473,-660.0,0.0002296,2]
[367239003,1750710672482,-660.0,0.0002296,2]
[367239004,1750710672492,-500.0,0.0002296,2]
[367239005,1750710672502,-239.96203631,0.0002296,2]
[367239006,1750710672511,-150.0,0.00022964,2]
[367239007,1750710672521,-1597.60197725,0.0002297,2]
[367239008,1750710672533,-158.19413251,0.0002297,2]
[367239009,1750710672542,-6182.49903382,0.0002297,2]
[367239010,1750710672555,-176.4791628,0.0002297,4]
[367239011,1750710672565,-12850.83822778,0.00022971,2]
[367239012,1750710672575,-150.0,0.00022973,2]
[367239013,1750710672585,-208.0,0.00022975,2]
[367239014,1750710672594,-208.0,0.00022976,2]
[367239015,1750710672604,-1000.0,0.00022982,2]
[367239016,1750710672614,-500.0,0.00022988,2]
[367239017,1750710672624,-150.0,0.00022988,2]
[367239018,1750710672635,-379.74616341,0.00022988,2]
[367239019,1750710672645,-204.90480879,0.00022988,2]
[367239020,1750710672654,-500.0,0.00022988,2]
[367239021,1750710672664,-500.0,0.00022988,2]